bitfinex/quotes_SOLUSD_20260310
["timestamp","ask_amount","ask_price","bid_price","bid_amount"]
[1773128304854,40.29565496,86.858,86.814,0.98216157]
[1773128304855,0.5705271,86.839,86.814,0.98216157]
[1773128305266,11.51569589,86.838,86.814,0.98216157]
[1773128305863,11.51569589,86.838,86.816,0.98216157]
[1773128306647,11.51516078,86.843,86.816,0.98216157]
[1773128307753,12.07876785,86.859,86.821,0.98216157]
[1773128307959,12.07876785,86.859,86.831,0.98216157]
[1773128308248,0.56433341,86.858,86.831,0.98216157]
[1773128308448,4.07462653,86.84,86.821,0.98216157]
[1773128309762,0.56433341,86.844,86.821,0.98216157]
[1773128310353,4.07462653,86.85,86.821,0.98216157]
[1773128310354,0.56134414,86.842,86.821,0.98216157]
[1773128310567,11.51503287,86.843,86.821,0.98216157]
[1773128312371,4.63306004,86.84,86.816,0.98216157]
[1773128313069,0.55843351,86.84,86.816,0.98216157]
[1773128313266,0.55699721,86.848,86.816,0.98216157]
[1773128314156,11.51423735,86.849,86.821,0.88553328]
[1773128314669,11.51423735,86.849,86.823,0.88553328]
[1773128315361,11.51277918,86.86,86.831,0.88553328]
[1773128317464,11.51224903,86.864,86.833,0.88553328]
[1773128317695,0.55003083,86.877,86.841,0.88553328]
[1773128317975,4.07515035,86.87,86.841,0.88553328]
[1773128318268,0.55003083,86.869,86.841,0.88553328]
[1773128318469,0.54869075,86.859,86.83,4.07515035]
[1773128318773,0.54869075,86.859,86.831,0.88553328]
[1773128319561,0.54869075,86.859,86.833,0.88553328]
[1773128319766,0.54736592,86.867,86.833,0.88553328]
[1773128321676,0.54476228,86.865,86.833,0.88553328]
[1773128322667,0.54476228,86.865,86.832,11.51649161]
[1773128322668,0.54476228,86.865,86.835,0.88553328]
[1773128324655,11.51224903,86.864,86.837,0.88553328]
[1773128325474,0.53974117,86.863,86.837,0.88553328]
[1773128326081,0.53974117,86.859,86.831,0.88553328]
[1773128326456,4.07515035,86.86,86.831,0.88553328]
[1773128327173,12.05076744,86.864,86.833,0.88553328]
[1773128327676,4.07515035,86.86,86.833,0.88553328]
[1773128328459,4.61125633,86.86,86.833,0.88553328]
[1773128328979,0.53610598,86.858,86.833,0.88553328]
[1773128329679,0.53610598,86.858,86.824,28.79376092]
[1773128329680,0.53492562,86.849,86.825,0.88553328]
[1773128330764,0.53259938,86.839,86.813,57.28836529]
[1773128331086,0.53259938,86.837,86.813,57.28836529]
[1773128331260,0.53259938,86.837,86.814,0.92808485]
[1773128331460,4.07515035,86.83,86.813,52.98739773]
[1773128331667,0.92244787,86.829,86.813,52.98739773]
[1773128332067,4.07515035,86.83,86.813,52.98739773]
[1773128332365,0.92244787,86.836,86.813,52.98739773]
[1773128333487,0.92244787,86.836,86.814,0.92808485]
[1773128333664,11.51609374,86.835,86.814,0.92808485]
[1773128334758,11.51344194,86.855,86.821,0.92808485]
[1773128334981,0.92244787,86.854,86.821,0.92808485]
[1773128335163,0.92244787,86.839,86.813,52.98739773]
[1773128335366,0.92244787,86.839,86.814,0.92808485]
[1773128335684,4.07515035,86.85,86.814,0.92808485]
[1773128335981,0.92244787,86.849,86.821,0.92808485]
[1773128336171,0.92244787,86.854,86.821,0.92808485]
[1773128338285,0.92244787,86.854,86.82,4.07515035]
[1773128338286,11.51370706,86.853,86.823,0.92808485]
[1773128339064,11.51370706,86.853,86.831,0.92808485]
[1773128340378,0.92244787,86.839,86.817,0.92808485]
[1773128340583,0.92244787,86.829,86.813,52.98739773]
[1773128341092,0.92244787,86.845,86.814,0.92808485]
[1773128341682,11.51370706,86.853,86.831,0.92808485]
[1773128341884,0.92244787,86.863,86.831,0.92808485]
[1773128342291,11.5125141,86.862,86.833,0.92808485]
[1773128343687,11.5125141,86.862,86.84,4.07515035]
[1773128343891,11.5125141,86.862,86.841,0.8935015]
[1773128344685,11.5125141,86.862,86.813,81.78492805]
[1773128344686,0.88974947,86.886,86.851,0.8935015]
[1773128345775,0.88974947,86.884,86.853,0.8935015]
[1773128346289,4.96489982,86.88,86.853,0.8935015]
[1773128346490,0.88974947,86.879,86.853,0.8935015]
[1773128348071,11.51039388,86.878,86.853,0.8935015]
[1773128348282,0.88974947,86.877,86.853,0.8935015]
[1773128349370,11.51039388,86.878,86.853,0.8935015]
[1773128349871,11.50973147,86.883,86.853,0.8935015]
[1773128350679,11.50973147,86.883,86.855,0.8935015]
[1773128351085,11.50973147,86.883,86.861,0.8935015]
[1773128352686,0.88974947,86.879,86.851,0.8935015]
[1773128352885,0.88974947,86.879,86.852,0.8935015]
[1773128353490,0.88974947,86.888,86.852,0.8935015]
[1773128355601,0.88974947,86.886,86.854,0.8935015]
[1773128357600,0.88974947,86.884,86.854,0.8935015]
[1773128358007,0.88974947,86.884,86.861,0.8935015]
[1773128359487,11.50946653,86.885,86.861,0.8935015]
[1773128359689,28.76990308,86.897,86.84,4.07515035]
[1773128359690,12.39789148,86.895,86.871,0.8935015]
[1773128359888,0.88974947,86.894,86.871,0.8935015]
[1773128361907,0.88974947,86.892,86.871,0.8935015]
[1773128363004,11.50867178,86.891,86.871,0.8935015]
[1773128364684,11.50812933,86.896,86.881,0.8935015]
[1773128364889,0.88974947,86.917,86.891,0.8935015]
[1773128366311,0.88974947,86.917,86.88,4.07515035]
[1773128366495,0.88974947,86.909,86.87,4.07515035]
[1773128366807,0.88974947,86.889,86.85,4.07515035]
[1773128367014,0.88974947,86.889,86.86,4.07515035]
[1773128367398,0.88974947,86.887,86.86,4.07515035]
[1773128368494,0.88974947,86.887,86.861,0.8935015]
[1773128368993,0.88974947,86.887,86.84,4.35947349]
[1773128368994,0.88974947,86.879,86.841,0.8935015]
[1773128369188,4.07515035,86.88,86.83,4.07515035]
[1773128369189,0.88974947,86.859,86.83,4.07515035]
[1773128369396,0.88974947,86.859,86.814,11.51887944]
[1773128369397,11.51304427,86.858,86.82,4.07515035]
[1773128369608,0.88974947,86.857,86.83,4.07515035]
[1773128369794,0.88974947,86.868,86.84,4.07515035]
[1773128370101,11.51185145,86.867,86.84,4.07515035]
[1773128371115,11.51185145,86.867,86.841,0.61032135]
[1773128372111,0.95904032,86.859,86.817,0.14216157]
[1773128372299,0.95904032,86.859,86.83,4.07515035]
[1773128372498,0.95904032,86.859,86.82,4.07515035]
[1773128372892,40.29148007,86.867,86.84,4.07515035]
[1773128372893,0.95904032,86.866,86.84,4.07515035]
[1773128373209,0.95904032,86.866,86.83,4.07515035]
[1773128375206,0.95904032,86.859,86.83,4.07515035]
[1773128375402,0.95904032,86.859,86.826,11.5171968]
[1773128377499,11.51304427,86.858,86.83,4.07515035]
[1773128377719,11.51304427,86.858,86.83,4.07509956]
[1773128378024,11.51304427,86.858,86.82,4.07509956]
[1773128378393,12.47208459,86.858,86.82,4.07509956]
[1773128379920,11.51304427,86.858,86.83,4.07509956]
[1773128380518,12.47208459,86.858,86.83,4.07509956]
[1773128380913,4.07509956,86.85,86.814,11.51887944]
[1773128381100,0.95904032,86.849,86.814,11.51887944]
[1773128381921,0.95904032,86.847,86.82,4.07509956]
[1773128382815,0.95904032,86.847,86.814,11.51887944]
[1773128382816,0.95904032,86.867,86.83,4.07509956]
[1773128383019,0.95904032,86.866,86.83,4.07509956]
[1773128384019,0.95904032,86.864,86.831,11.51662424]
[1773128385123,3.69383402,86.889,86.81,0.2]
[1773128385124,0.95904032,86.849,86.81,4.27509956]
[1773128385502,0.95904032,86.839,86.81,0.2]
[1773128386912,0.95904032,86.837,86.81,0.2]
[1773128391337,0.95904032,86.835,86.81,0.22004565]
[1773128393346,11.51622636,86.834,86.81,0.22004565]
[1773128393649,11.51622636,86.834,86.813,53.00898623]
[1773128393849,4.07509956,86.84,86.814,11.51887944]
[1773128394248,5.0444692,86.84,86.814,11.51887944]
[1773128394432,0.96936964,86.839,86.814,11.51887944]
[1773128395252,4.07509956,86.84,86.813,52.98739773]
[1773128395253,0.96936964,86.837,86.813,52.98739773]
[1773128395551,0.96936964,86.829,86.813,52.98739773]
[1773128395751,0.96936964,86.819,86.813,45.97074568]
[1773128396536,0.96936964,86.829,86.813,45.97074568]
[1773128397546,12.48639179,86.828,86.813,45.97074568]
[1773128397748,0.96936964,86.827,86.813,45.97074568]
[1773128398148,11.51702215,86.828,86.813,45.97074568]
[1773128398847,12.48639179,86.828,86.813,45.97074568]
[1773128399036,11.51702215,86.828,86.813,45.97074568]
[1773128399238,0.96936964,86.827,86.813,45.97074568]
[1773128400056,0.96936964,86.825,86.813,45.97074568]
[1773128400772,11.51728744,86.826,86.8,0.2]
[1773128400773,0.96936964,86.819,86.8,0.2]
[1773128401274,0.88867216,86.809,86.8,0.2]
[1773128403575,0.91986194,86.829,86.801,0.20956556]
[1773128403750,0.91986194,86.828,86.801,0.20956556]
[1773128404372,0.91986194,86.848,86.81,4.07509956]
[1773128404547,0.91986194,86.848,86.811,0.21040324]
[1773128405572,0.91986194,86.846,86.813,0.21122124]
[1773128407675,0.91986194,86.867,86.821,0.21283002]
[1773128407852,0.91986194,86.866,86.831,0.21283002]
[1773128408052,0.91986194,86.859,86.831,0.21283002]
[1773128409160,0.91986194,86.859,86.825,0.21362336]
[1773128410170,0.91986194,86.857,86.83,4.28950733]
[1773128410375,0.91986194,86.857,86.831,0.2151815]
[1773128410877,0.91986194,86.857,86.826,11.73246894]
[1773128411266,0.91986194,86.857,86.826,11.51728744]
[1773128412578,0.91986194,86.855,86.822,0.2149592]
[1773128413667,0.91986194,86.853,86.824,0.21398177]
[1773128414168,11.5135745,86.854,86.816,11.73258958]
[1773128414169,0.91986194,86.849,86.816,11.73258958]
[1773128414371,0.91986194,86.849,86.817,0.21301514]
[1773128414759,0.91986194,86.849,86.816,11.51860781]
[1773128414760,0.91986194,86.839,86.816,11.51860781]
[1773128415258,0.91986194,86.839,86.81,0.21301514]
[1773128415464,0.91986194,86.839,86.811,11.51927751]
[1773128415668,0.91986194,86.837,86.811,0.21205071]
[1773128417274,0.91986194,86.835,86.805,0.21019046]
[1773128418464,0.91986194,86.829,86.806,11.51994101]
[1773128420870,0.91986194,86.829,86.802,0.20745841]
[1773128421068,0.91986194,86.827,86.802,0.20745841]
[1773128421862,4.07509956,86.83,86.802,0.20745841]
[1773128422070,4.07509956,86.84,86.811,0.20657249]
[1773128422369,11.51556328,86.839,86.811,0.20657249]
[1773128423070,11.51556328,86.839,86.813,0.20569412]
[1773128423269,12.43542522,86.839,86.813,0.20569412]
[1773128424690,0.91986194,86.838,86.813,0.20569412]
[1773128425985,0.91986194,86.836,86.813,0.20569412]
[1773128428081,0.91986194,86.836,86.815,0.20144868]
[1773128428391,0.91986194,86.849,86.815,0.20144868]
[1773128429693,0.91986194,86.857,86.831,0.19981192]
[1773128429900,0.91986194,86.864,86.831,0.19981192]
[1773128430076,0.91986194,86.864,86.83,4.07509956]
[1773128430077,0.91986194,86.864,86.833,0.19981192]
[1773128430896,0.91986194,86.839,86.817,11.5184814]
[1773128431593,0.91986194,86.839,86.814,0.19902387]
[1773128432798,0.91986194,86.839,86.815,11.51874676]
[1773128433797,0.91986194,86.839,86.815,0.19592028]
[1773128436196,0.91986194,86.839,86.816,11.51861408]
[1773128436494,0.91986194,86.839,86.817,0.1936893]
[1773128437996,0.91986194,86.839,86.819,0.19296823]
[1773128439492,0.96245608,86.849,86.819,0.19296823]
[1773128439691,0.96245608,86.845,86.819,0.19296823]
[1773128441084,0.96245608,86.843,86.819,0.19296823]
[1773128441789,12.47687573,86.848,86.821,0.19013568]
[1773128441991,0.96245608,86.847,86.821,0.19013568]
[1773128442706,0.96245608,86.859,86.821,0.19013568]
[1773128442884,0.96245608,86.859,86.831,0.18945537]
[1773128443491,0.96245608,86.849,86.814,11.51877617]
[1773128443690,0.96245608,86.839,86.814,11.51877617]
[1773128444395,0.96245608,86.839,86.814,11.70689911]
[1773128444902,0.96245608,86.839,86.815,0.18812294]
[1773128448917,0.96245608,86.837,86.815,0.18812294]
[1773128449995,0.96245608,86.837,86.816,11.51861408]
[1773128451814,0.93443591,86.835,86.811,11.51919486]
[1773128452695,0.93443591,86.835,86.812,0.18245298]
[1773128453091,0.93443591,86.835,86.813,11.51901212]
[1773128453296,0.93443591,86.835,86.814,0.18245298]
[1773128454106,4.07664228,86.82,86.8,0.2]
[1773128454310,0.93443591,86.819,86.8,0.2]
[1773128455208,0.93443591,86.817,86.8,0.2]
[1773128459801,0.93443591,86.815,86.8,0.2]
[1773128460604,0.93443591,86.825,86.801,0.17788453]
[1773128460810,0.93443591,86.831,86.811,0.17788453]
[1773128461116,0.93443591,86.838,86.816,0.17788453]
[1773128462723,0.93443591,86.836,86.808,11.51958555]
[1773128463024,0.93443591,86.836,86.809,0.17679455]
[1773128463221,0.93443591,86.836,86.808,11.51958555]
[1773128463222,0.93443591,86.836,86.811,0.17626445]
[1773128463416,0.93443591,86.842,86.811,0.17626445]
[1773128463609,0.93443591,86.842,86.82,4.07664228]
[1773128463809,0.88806529,86.85,86.821,0.17574045]
[1773128464027,0.88806529,86.856,86.83,4.07664228]
[1773128464212,0.88806529,86.856,86.831,0.17574045]
[1773128465110,0.88806529,86.856,86.833,0.17522174]
[1773128465311,11.51344194,86.855,86.833,0.17522174]
[1773128465711,12.40150723,86.855,86.833,0.17522174]
[1773128465928,0.88806529,86.854,86.833,0.17522174]
[1773128466428,0.88806529,86.862,86.84,4.07664228]
[1773128466641,0.88806529,86.868,86.841,0.17420591]
[1773128467641,0.88806529,86.868,86.781,1.15232596]
[1773128467642,0.88806529,86.849,86.811,11.51927751]
[1773128467929,4.07664228,86.83,86.811,12.43691896]
[1773128468229,4.07664228,86.83,86.812,0.91764145]
[1773128468926,3.69383402,86.864,86.812,0.91764145]
[1773128469133,4.07664228,86.85,86.812,0.91764145]
[1773128470124,11.51423735,86.849,86.813,11.51901212]
[1773128470328,11.51423735,86.849,86.814,0.91764145]
[1773128471634,0.88806529,86.848,86.814,0.91764145]
[1773128472432,11.51423735,86.849,86.816,0.91764145]
[1773128472840,0.88806529,86.848,86.816,0.91764145]
[1773128475854,0.88806529,86.846,86.818,0.91764145]
[1773128479155,0.88806529,86.844,86.82,0.91764145]
[1773128481044,0.88806529,86.842,86.812,0.91764145]
[1773128483754,0.88806529,86.84,86.814,0.91764145]
[1773128484837,0.88806529,86.84,86.815,11.51874676]
[1773128485139,0.88806529,86.84,86.816,0.91764145]
[1773128487055,0.88806529,86.84,86.818,0.91764145]
[1773128489056,0.88806529,86.838,86.818,0.91764145]
[1773128489255,0.88806529,86.838,86.81,4.07664228]
[1773128489256,0.88806529,86.829,86.801,11.5206046]
[1773128489460,0.88806529,86.829,86.802,0.91764145]
[1773128491356,0.88806529,86.829,86.804,0.91764145]
[1773128491558,0.88806529,86.837,86.804,0.91764145]
[1773128493140,0.88806529,86.837,86.811,0.91764145]
[1773128493340,0.88806529,86.842,86.811,0.91764145]
[1773128493765,0.88806529,86.842,86.813,0.86708915]
[1773128494955,0.907299,86.839,86.813,0.86708915]
[1773128496061,0.907299,86.839,86.815,0.86708915]
[1773128498554,0.907299,86.837,86.811,0.86708915]
[1773128499275,0.907299,86.819,86.8,1.06708915]
[1773128499659,4.07664228,86.81,86.789,0.86708915]
[1773128499854,0.907299,86.819,86.79,0.86708915]
[1773128500053,0.907299,86.829,86.791,0.86708915]
[1773128500573,0.907299,86.827,86.793,0.86708915]
[1773128503260,4.07890705,86.82,86.795,0.86708915]
[1773128504079,12.42458644,86.826,86.795,0.86708915]
[1773128504257,12.42458644,86.826,86.794,11.52153374]
[1773128504258,12.42458644,86.826,86.801,0.86708915]
[1773128504459,11.51728744,86.826,86.801,0.86708915]
[1773128506382,12.42458644,86.826,86.801,0.86708915]
[1773128506584,11.51728744,86.826,86.801,0.86708915]
[1773128506781,11.51728744,86.826,86.783,28.80728973]
[1773128506782,0.907299,86.825,86.785,0.86708915]
[1773128507085,4.98620605,86.82,86.787,0.86708915]
[1773128507286,0.907299,86.819,86.787,0.86708915]
[1773128507792,0.907299,86.819,86.783,28.80728973]
[1773128507793,0.907299,86.817,86.789,0.86708915]
[1773128507987,0.907299,86.809,86.789,0.86708915]
[1773128509990,0.907299,86.809,86.786,11.52251356]
[1773128510378,0.907299,86.807,86.787,11.52246304]
[1773128510877,0.907299,86.807,86.787,12.38955219]
[1773128511082,0.907299,86.807,86.788,0.86708915]
[1773128511586,0.907299,86.807,86.787,11.52246304]
[1773128512270,0.907299,86.805,86.785,11.52272858]
[1773128512886,0.907299,86.799,86.774,0.86708915]
[1773128513087,0.907299,86.799,86.776,12.40006994]
[1773128513400,0.907299,86.799,86.777,0.87614702]
[1773128514019,0.87889965,86.797,86.777,0.87614702]
[1773128515203,0.87889965,86.797,86.778,11.52365807]
[1773128515408,0.87889965,86.797,86.779,0.87614702]
[1773128515584,4.07890705,86.81,86.779,0.87614702]
[1773128516191,4.07890705,86.81,86.781,0.87614702]
[1773128516393,4.9578067,86.81,86.781,0.87614702]
[1773128516795,0.87889965,86.81,86.781,0.87614702]
[1773128517878,0.87889965,86.81,86.783,0.87614702]
[1773128518088,0.87889965,86.809,86.783,0.87614702]
[1773128520611,0.87889965,86.809,86.785,0.87614702]
[1773128522902,0.87889965,86.807,86.787,0.87614702]
[1773128523401,4.07890705,86.8,86.777,0.87614702]
[1773128523602,0.92041449,86.799,86.771,0.88989972]
[1773128524410,11.51919027,86.812,86.781,0.88989972]
[1773128524588,4.07890705,86.81,86.781,0.88989972]
[1773128525112,11.5195429,86.809,86.783,0.88989972]
[1773128526390,0.92041449,86.808,86.783,0.88989972]
[1773128527303,0.92041449,86.806,86.783,0.88989972]
[1773128528097,4.07890705,86.81,86.785,0.88989972]
[1773128528599,0.92041449,86.811,86.785,0.88989972]
[1773128529303,11.5194102,86.81,86.787,0.88989972]
[1773128529818,0.92041449,86.809,86.787,0.88989972]
[1773128530417,0.92041449,86.809,86.781,0.88989972]
[1773128532020,4.07890705,86.79,86.77,0.2]
[1773128532196,0.92041449,86.789,86.77,0.2]
[1773128532398,0.92041449,86.789,86.77,1.08989972]
[1773128534119,0.92041449,86.794,86.772,0.88989972]
[1773128538019,4.07890705,86.8,86.77,0.2]
[1773128538020,0.92041449,86.779,86.77,0.2]
[1773128538198,0.92041449,86.779,86.75,0.2]
[1773128538199,0.92041449,86.779,86.751,0.88989972]
[1773128538403,4.07890705,86.77,86.751,0.88989972]
[1773128539019,4.38706403,86.77,86.751,0.88989972]
[1773128540814,4.07890705,86.77,86.751,0.88989972]
[1773128543628,11.52485334,86.769,86.751,0.88989972]
[1773128544529,4.07890705,86.77,86.751,0.88989972]
[1773128545918,0.31481457,86.769,86.75,0.2]
[1773128546427,0.31481457,86.769,86.75,1.08989972]
[1773128546610,28.80243097,86.799,86.752,0.88989972]
[1773128546802,28.80243097,86.799,86.761,0.88989972]
[1773128546803,0.31571243,86.795,86.761,0.88989972]
[1773128547003,4.39461948,86.79,86.761,0.88989972]
[1773128547711,4.07890705,86.79,86.761,0.88989972]
[1773128549334,11.52219751,86.789,86.761,0.88989972]
[1773128551045,11.52219751,86.789,86.763,0.88989972]
[1773128551723,0.32005695,86.788,86.763,0.88989972]
[1773128551926,4.07890705,86.78,86.763,0.88989972]
[1773128552331,0.32090449,86.769,86.75,0.2]
[1773128552530,4.07890705,86.76,86.75,0.2]
[1773128553330,0.32090449,86.769,86.75,0.2]
[1773128553537,15.60367777,86.77,86.75,1.08989972]
[1773128558530,11.5239536,86.776,86.752,0.95613995]
[1773128561239,4.07890705,86.79,86.761,0.95613995]
[1773128561630,11.522606,86.786,86.761,0.95613995]
[1773128561936,0.3288176,86.779,86.755,0.95613995]
[1773128562533,4.0819559,86.78,86.756,0.95613995]
[1773128563036,0.32956211,86.79,86.756,0.95613995]
[1773128563224,4.0819559,86.78,86.756,0.95613995]
[1773128565020,11.52245325,86.788,86.758,0.95613995]
[1773128565716,4.0819559,86.79,86.758,0.95613995]
[1773128566535,0.33245104,86.789,86.758,0.95613995]
[1773128566747,0.33245104,86.779,86.758,0.95613995]
[1773128567324,4.0819559,86.78,86.758,0.95613995]
[1773128568652,4.0819559,86.78,86.76,0.96027836]
[1773128574128,11.52352527,86.779,86.76,0.96027836]
[1773128577666,4.0819559,86.78,86.76,0.96027836]
[1773128577667,0.34034613,86.794,86.762,0.96027836]
[1773128577829,0.34034613,86.799,86.762,0.96027836]
[1773128578956,11.52100278,86.798,86.764,0.96027836]
[1773128579163,11.52100278,86.798,86.771,0.96027836]
[1773128580131,0.34155903,86.797,86.771,0.96027836]
[1773128580331,0.34216749,86.789,86.766,0.96027836]
[1773128581084,4.0819559,86.79,86.766,0.96027836]
[1773128582301,11.52100278,86.798,86.768,0.96027836]
[1773128582589,11.52100278,86.798,86.771,0.96027836]
[1773128585080,11.52100278,86.798,86.767,11.52511899]
[1773128585081,4.42699962,86.81,86.773,0.94789776]
[1773128585259,0.34559314,86.799,86.773,0.94789776]
[1773128585869,0.34559314,86.799,86.767,0.94789776]
[1773128586075,0.34559314,86.779,86.751,0.94789776]
[1773128586274,0.34559314,86.779,86.752,0.94789776]
[1773128587688,4.0819559,86.77,86.752,0.94789776]
[1773128588285,4.0819559,86.77,86.754,0.94789776]
[1773128588492,11.87091047,86.778,86.754,0.94789776]
[1773128590170,11.87091047,86.778,86.756,0.94789776]
[1773128590775,11.87197631,86.778,86.756,0.94789776]
[1773128591190,0.34831824,86.769,86.748,11.52760091]
[1773128591393,4.0819559,86.77,86.752,0.94789776]
[1773128591576,0.34883981,86.775,86.752,0.94789776]
[1773128592095,11.52365807,86.778,86.754,0.94789776]
[1773128595900,11.52365807,86.778,86.756,0.94789776]
[1773128596308,0.34922909,86.769,86.743,0.94789776]
[1773128596599,4.0819559,86.76,86.743,0.94789776]
[1773128597500,4.0819559,86.77,86.752,0.94789776]
[1773128601405,11.52485334,86.769,86.752,0.94789776]
[1773128601809,11.52402606,86.776,86.754,0.94789776]
[1773128602216,0.34960473,86.779,86.754,0.94789776]
[1773128602510,0.34969298,86.777,86.754,0.94789776]
[1773128602808,4.0819559,86.77,86.754,0.94789776]
[1773128606401,15.60672744,86.77,86.754,0.94789776]
[1773128607880,0.35006442,86.769,86.749,0.94789776]
[1773128608084,0.35006442,86.769,86.74,0.2]
[1773128608085,15.60672744,86.77,86.75,1.14789776]
[1773128609096,4.0819559,86.76,86.75,0.2]
[1773128609408,0.9140464,86.759,86.74,0.2]
[1773128610002,0.9140464,86.749,86.73,0.2]
[1773128610207,0.9140464,86.749,86.731,11.5299028]
[1773128610506,0.9140464,86.749,86.73,0.2]
[1773128612009,0.9140464,86.747,86.73,0.2]
[1773128612209,0.9140464,86.739,86.73,0.2]
[1773128613919,15.60937852,86.75,86.73,0.2]
[1773128613920,0.92071064,86.749,86.73,0.2]
[1773128618026,11.52764328,86.748,86.73,0.2]
[1773128618199,0.92071064,86.747,86.73,0.2]
[1773128618723,5.00266654,86.74,86.723,0.94789776]
[1773128619313,0.92071064,86.74,86.723,0.94789776]
[1773128621128,4.0819559,86.74,86.723,0.94789776]
[1773128621338,0.92071064,86.739,86.723,0.94789776]
[1773128623130,0.92071064,86.739,86.72,1.09794566]
[1773128623801,12.449578,86.739,86.72,1.09794566]
[1773128625121,0.92071064,86.739,86.72,1.09794566]
[1773128625434,11.52831378,86.743,86.72,1.09794566]
[1773128625637,0.92071064,86.759,86.731,0.89794566]
[1773128626922,4.08662265,86.76,86.731,0.89794566]
[1773128626923,0.92071064,86.757,86.731,0.89794566]
[1773128627530,0.92071064,86.757,86.729,11.53004317]
[1773128627531,4.08662265,86.76,86.733,0.89794566]
[1773128627740,11.52618172,86.759,86.733,0.89794566]
[1773128627936,0.92071064,86.762,86.733,0.92507736]
[1773128628133,5.02581834,86.77,86.733,0.92507736]
[1773128628333,0.93919569,86.769,86.733,0.92507736]
[1773128628940,0.93919569,86.767,86.735,0.92507736]
[1773128629365,0.93919569,86.749,86.722,0.92507736]
[1773128629566,0.93919569,86.749,86.723,0.92507736]
[1773128632159,0.93919569,86.749,86.72,4.28662265]
[1773128632160,0.93919569,86.747,86.725,0.92507736]
[1773128637646,0.93919569,86.739,86.725,0.92507736]
[1773128637971,0.93919569,86.744,86.725,0.92507736]
[1773128639562,0.93919569,86.739,86.71,0.2]
[1773128639973,0.93919569,86.739,86.71,4.28662265]
[1773128640177,4.08662265,86.74,86.71,4.28662265]
[1773128640754,4.08662265,86.74,86.712,11.53238898]
[1773128641278,0.93919569,86.742,86.712,11.53238898]
[1773128641466,4.08662265,86.75,86.72,4.08662265]
[1773128641775,0.93919569,86.753,86.721,0.92507736]
[1773128642775,0.93919569,86.76,86.731,0.92507736]
[1773128642981,0.93919569,86.765,86.731,0.92507736]
[1773128646664,0.93919569,86.765,86.73,4.08662265]
[1773128646665,0.93919569,86.765,86.732,40.35419452]
[1773128646860,0.93676785,86.779,86.741,0.90691942]
[1773128647071,0.93676785,86.779,86.751,0.90691942]
[1773128647859,0.93676785,86.777,86.752,0.90691942]
[1773128648783,11.52392366,86.776,86.752,0.90691942]
[1773128648967,12.46069151,86.776,86.752,0.90691942]
[1773128649483,0.93676785,86.775,86.752,0.90691942]
[1773128649959,4.08662265,86.78,86.754,0.90691942]
[1773128650162,0.93676785,86.78,86.754,0.90691942]
[1773128650887,0.93676785,86.779,86.754,0.90691942]
[1773128655788,0.93676785,86.779,86.756,0.90691942]
[1773128658480,0.93676785,86.786,86.761,0.90691942]
[1773128658888,0.93676785,86.779,86.757,11.52644743]
[1773128659985,0.93676785,86.779,86.757,12.43336685]
[1773128660387,0.93676785,86.779,86.758,0.90691942]
[1773128662382,0.93676785,86.791,86.76,0.90691942]
[1773128662579,0.93676785,86.791,86.761,0.90691942]
[1773128663590,0.93676785,86.798,86.761,0.90691942]
[1773128663784,0.93676785,86.798,86.771,0.90691942]
[1773128663991,0.93676785,86.805,86.781,0.90691942]
[1773128664486,9.21740285,86.801,86.781,0.90691942]
[1773128665280,9.21740285,86.801,86.783,0.90691942]
[1773128667880,0.93676785,86.799,86.772,11.52440949]
[1773128668475,0.93676785,86.799,86.773,0.90691942]
[1773128671889,0.93676785,86.799,86.775,0.90691942]
[1773128672680,11.52100278,86.798,86.77,0.90691942]
[1773128672887,0.93676785,86.789,86.77,0.90691942]
[1773128673085,0.93676785,86.789,86.764,0.90691942]
[1773128673988,0.93676785,86.789,86.765,11.52538465]
[1773128674202,0.93676785,86.789,86.767,0.97138438]
[1773128676112,0.9776559,86.788,86.767,0.97138438]
[1773128676891,0.9776559,86.788,86.753,1.25570752]
[1773128677089,0.9776559,86.779,86.754,0.97138438]
[1773128680401,0.9776559,86.779,86.756,0.97138438]
[1773128682793,0.9776559,86.784,86.761,0.97138438]
[1773128683008,4.08662265,86.79,86.761,0.97138438]
[1773128683009,0.9776559,86.789,86.761,0.97138438]
[1773128683707,0.9776559,86.795,86.761,0.97138438]
[1773128683909,0.9776559,86.8,86.771,0.97138438]
[1773128686906,15.60140333,86.81,86.773,0.97138438]
[1773128687104,0.9776559,86.812,86.781,0.97138438]
[1773128687304,0.9776559,86.812,86.783,0.97138438]
[1773128687509,0.9776559,86.812,86.784,0.97138438]
[1773128687692,0.9776559,86.812,86.785,1.11354595]
[1773128688025,0.9776559,86.812,86.787,1.11354595]
[1773128688188,0.9776559,86.812,86.789,0.97138438]
[1773128689010,0.9776559,86.812,86.781,28.80802465]
[1773128689011,7.87569858,86.84,86.743,0.97138438]
[1773128689012,0.9776559,86.799,86.743,0.97138438]
[1773128689191,0.9776559,86.767,86.744,0.97138438]
[1773128690223,4.08186456,86.76,86.745,12.49942634]
[1773128690424,4.08186456,86.76,86.746,0.97138438]
[1773128690632,0.9776559,86.767,86.746,0.97138438]
[1773128692604,4.08186456,86.76,86.746,0.97138438]